Cogmind - Beta 16.1 *** ADVENTURER MODE // 2026.03.26 @ 14:41:48 Player: vinyl Result: Self-destructed Performance ------------- Evolutions (3) 1500 Regions Visited (6) 1200 Robots Destroyed (54) 270 Value Destroyed (1078) 1078 Prototype IDs (0) 0 Alien Tech Used (0) 0 Bonus (0) 0 TOTAL SCORE: 4048 Bonus ------- None Cogmind --------- Core Integrity 121/700 Matter 7/300 Energy 100/100 System Corruption 7% Temperature Cool (0) Movement Core (50) Location -7/Factory Parts ------- > --- POWER (2) -------- (None) > --- PROPULSION (5) --- (None) > --- UTILITY (4) ------ (None) > --- WEAPON (2) ------- (None) > --- INVENTORY (5) ---- Medium Treads Mining Claw Peak State ------------ > --- POWER ------------ Ion Engine Light Ion Engine > --- PROPULSION ------- Wheel Wheel Compact Wheel Combat Airjet > --- UTILITY ---------- Small Storage Unit Small Storage Unit > --- WEAPON ----------- Light Assault Rifle Mini Grenade Launcher > --- INVENTORY -------- Hover Unit Small Laser Mining Claw [Rating: 15] Favorites ----------- Power Light Ion Engine Engine Light Ion Engine Propulsion Light Treads Treads Light Treads Wheel Compact Wheel Hover Unit Hover Unit Utility Small Storage Unit Device ECM Suite Storage Small Storage Unit Processor Targeting Computer Weapon Light Assault Rifle Energy Gun Lightning Gun Energy Cannon EM Pulse Cannon Ballistic Gun Light Assault Rifle Ballistic Cannon Improved Light Cannon Launcher Mini Grenade Launcher Slashing Weapon Scythe Build | -11 -10 -9 -9 -8 -8 -7 ------- Run | Yrd Mat Mat Min Mat Sto Fac Slots Evolved 6 | . . 2 . 2 . 2 Power 1 | . . . . 1 . . Propulsion 3 | . . 1 . 1 . 1 Utility 2 | . . 1 . . . 1 Weapon . | . . . . . . . Parts Attached 42 | 6 1 1 9 8 8 9 Power 7 | 1 . . 2 2 1 1 Engine 7 | 1 . . 2 2 1 1 Core . | . . . . . . . Reactor . | . . . . . . . Propulsion 17 | 2 . . 4 5 5 1 Treads 4 | 2 . . 1 . . 1 Leg . | . . . . . . . Wheel 9 | . . . 3 3 3 . Hover 4 | . . . . 2 2 . Flight . | . . . . . . . Utility 5 | 1 1 . 1 1 . 1 Device 1 | . 1 . . . . . Storage 2 | 1 . . 1 . . . Processor 2 | . . . . 1 . 1 Hackware . | . . . . . . . Protection . | . . . . . . . Artifact . | . . . . . . . Weapon 13 | 2 . 1 2 . 2 6 Energy Gun 2 | . . . . . . 2 Energy Cannon 1 | . . . . . . 1 Ballistic Gun 4 | 2 . . 2 . . . Ballistic Cannon 2 | . . . . . 2 . Launcher 2 | . . 1 . . . 1 Special Weapon . | . . . . . . . Impact Weapon . | . . . . . . . Slashing Weapon 2 | . . . . . . 2 Piercing Weapon . | . . . . . . . Special Melee Weapon . | . . . . . . . Unidentified Prototypes . | . . . . . . . Parts Lost 35 | . . 1 6 9 4 15 Power 6 | . . . 2 2 . 2 Propulsion 15 | . . 1 2 5 4 3 Utility 5 | . . . 1 . . 4 Weapon 9 | . . . 1 2 . 6 Highest Loss Streak 11 | . . 1 5 7 3 11 To Critical Strikes 2 | . . . . 2 . . Average Backups 4 | 1 3 5 4 4 3 5 Power . | . 1 2 1 . . . Propulsion . | . . . . 2 . . Utility . | . . . . . 1 . Weapon 3 | . 2 3 2 1 1 5 Tool/Special . | . . . . . . . Unused Backups 2 | . . . . 1 . 1 Power . | . . . . . . . Propulsion . | . . . . . . . Utility . | . . . . . . . Weapon 2 | . . . . 1 . 1 Tool/Special . | . . . . . . . Average Slot Usage (%) 70 | . 94 73 66 72 67 52 Engine 9 | . 14 11 10 13 1 5 Treads 9 | . 28 18 5 . . 4 Wheel 9 | . . . 11 21 15 11 Hover 2 | . . . . 4 10 . Device 3 | . 8 11 5 . . . Storage 14 | . 14 11 15 18 18 12 Processor 4 | . . . . 2 9 10 Ballistic Gun 9 | . 28 18 8 6 . . Ballistic Cannon 2 | . . . . . 12 5 Launcher 3 | . . 3 11 6 . . Peak Build Rating 15 | 6 7 8 9 15 11 13 Average Rating 8 | 4 6 6 7 10 9 9 On Entrance 6 | . 6 7 7 9 3 10 Avg Prop Armor Cover (%) 9 | . . . . 5 6 11 Naked Turns 51 | . . . . . . 51 Heaviest Build 22 | 11 13 13 17 22 21 21 Greatest Support 48 | 40 40 40 42 42 48 32 Greatest Overweight (x) 5 | 2 . . 5 3 5 5 Average Overweight (x) . | . . . . . . . Largest Inventory Capacity 8 | 8 8 8 8 8 8 8 Average Capacity 7 | 7 8 8 8 8 8 7 Most Carried 8 | 2 5 6 6 6 5 8 Average Carried 4 | 1 3 5 4 4 3 5 Final Capacity 8 | 8 8 8 8 8 8 5 Final Carried 5 | 2 5 5 4 5 5 2 Class Distribution -------------------- 63% | Mutant 36% | Scavenger-Mutant Dominant Class ---------------- Mutant | -10/Materials Mutant | -9/Materials Mutant | -9/Mines Scavenger-Mutant | -8/Materials Mutant | -8/Storage Scavenger-Mutant | -7/Factory Resources | -11 -10 -9 -9 -8 -8 -7 ----------- Run | Yrd Mat Mat Min Mat Sto Fac Matter Collected 860 | 260 86 93 238 139 4 40 Remotely . | . . . . . . . Salvage Created 1114 | . 201 268 200 191 230 24 Parts 98 | . 15 23 23 21 15 1 Haulers Intercepted 1 | . . 1 . . . . Recyclers Shooed 2 | . . 1 1 . . . Parts Field Recycled . | . . . . . . . Retrieved Matter . | . . . . . . . Parts Self-Destructed . | . . . . . . . Prevented . | . . . . . . . Parts Restored . | . . . . . . . Kills | -11 -10 -9 -9 -8 -8 -7 ------- Run | Yrd Mat Mat Min Mat Sto Fac Combat Hostiles Destroyed 38 | . 6 7 10 5 8 2 Guns 14 | . 6 3 3 2 . . Cannons 8 | . . . . . 8 . AOE 16 | . . 4 7 3 . 2 Classes Destroyed 11 | . 3 4 3 1 . . Worker 3 | . . . 1 1 1 . Builder 6 | . . 1 2 2 1 . Hauler 1 | . . 1 . . . . Recycler 4 | . . 1 2 1 . . Watcher 3 | . 1 2 . . . . Swarmer 22 | . 3 4 7 3 3 2 Grunt 8 | . 3 2 . . 3 . Duelist 1 | . . 1 . . . . Sentry 4 | . . . . 2 2 . Demolisher 2 | . . . 2 . . . Assembled 1 | . . . 1 . . . Best Kill Streak 10 | . 4 10 5 3 10 2 Combat Bots Only 8 | . 2 5 4 2 8 2 Max Kills in Single Turn 5 | . 1 3 5 3 2 2 Gunslinging . | . . . . . . . Exploded 3 | . . 2 3 2 . 2 Melee . | . . . . . . . Uniques/NPCs Destroyed . | . . . . . . . Combat | -11 -10 -9 -9 -8 -8 -7 -------- Run | Yrd Mat Mat Min Mat Sto Fac Hostile Shots Fired 398 | . 36 22 36 94 52 158 Missed 127 | . 11 8 7 32 15 54 Hits 271 | . 25 14 29 62 37 104 Melee 8 | . . 2 . . . 6 Projectile 263 | . 25 12 29 62 37 98 AOE 17 | . . . 17 . . . Critical Strikes 9 | . . 1 . 2 1 5 Part Disruptions 1 | . . . . . . 1 Damage Taken 3655 | . 207 249 703 747 365 1384 Core 1387 | . 48 77 306 290 87 579 Absorbed by Shields . | . . . . . . . Ignored by Resistances 1056 | . 64 73 193 223 107 396 Core Remaining (%) 53 | 100 80 . 4 . 31 . Volleys Fired 98 | . 19 15 14 20 17 13 Largest 2 | . 2 2 2 2 2 1 Hottest 80 | . 40 50 50 50 66 80 Shots Fired 173 | . 38 29 26 33 34 13 Gun 99 | . 38 24 12 19 . 6 Cannon 40 | . . . . . 34 6 Launcher 34 | . . 5 14 14 . 1 Special . | . . . . . . . Kinetic 132 | . 38 24 12 19 34 5 Thermal 3 | . . . . . . 3 Explosive 34 | . . 5 14 14 . 1 Electromagnetic 4 | . . . . . . 4 Robot Hit Streak 17 | . 10 7 14 17 7 9 Robot Miss Streak 3 | . 3 3 2 3 2 2 Penetration Max . | . . . . . . . Secondary Targets 2 | . . 2 . . . . Max Gunslinging Chain 1 | . . 1 . . . . Shots Hit Robots 119 | . 27 18 19 19 23 13 Core Hits 92 | . 13 16 24 19 14 6 Critical Kills . | . . . . . . . Critical Parts Destroyed . | . . . . . . . Critical Strikes 1 | . . . . . 1 . Blast 1 | . . . . . 1 . Melee Attacks 1 | . . . . . . 1 Impact . | . . . . . . . Slashing 1 | . . . . . . 1 Piercing . | . . . . . . . Sneak Attacks . | . . . . . . . Combat Hostiles . | . . . . . . . Follow-up Attacks . | . . . . . . . Damage Inflicted 3670 | . 287 883 715 730 645 410 Guns 760 | . 287 164 89 94 . 126 Cannons 624 | . . . . . 503 121 Explosions 2251 | . . 719 626 636 142 128 Melee 30 | . . . . . . 30 Ramming 5 | . . . . . . 5 Kinetic 1238 | . 287 164 89 94 503 101 Thermal 75 | . . . . . . 75 Explosive 2251 | . . 719 626 636 142 128 Electromagnetic 71 | . . . . . . 71 Impact . | . . . . . . . Slashing 30 | . . . . . . 30 Piercing . | . . . . . . . Highest Corruption 7 | . . . . . . 7 Average Corruption 4 | . . . . . . 4 Corruption Purged . | . . . . . . . Corruption Blocked . | . . . . . . . Effects 2 | . . . . . . 2 Message Errors 1 | . . . . . . 1 Heat Flow Errors 1 | . . . . . . 1 Overload Shots . | . . . . . . . Overflow Damage 99 | . . 20 3 21 50 5 Projectiles 1 | . . . . . 1 . Explosions 93 | . . 20 3 21 49 . Melee 5 | . . . . . . 5 Knockbacks 6 | . . . . . 3 3 Impact . | . . . . . . . Kinetic 6 | . . . . . 3 3 Secondary . | . . . . . . . Self-Inflicted Damage 368 | . . 125 79 112 . 52 Shots 12 | . . 3 4 4 . 1 Rammed 1 | . . . . . . 1 Targets Rammed 1 | . . . . . . 1 Kicked . | . . . . . . . Crushed . | . . . . . . . Highest Temperature 224 | . 9 15 8 10 19 224 Average Temperature 27 | . 6 6 3 6 6 86 Received Heat Transfer 597 | . 111 18 . 9 180 279 Siege Activations . | . . . . . . . Martial Activations . | . . . . . . . Shielding Activations . | . . . . . . . Robots Disrupted . | . . . . . . . Combat Hostiles . | . . . . . . . Robots Corrupted . | . . . . . . . Combat Hostiles . | . . . . . . . Parts Fried . | . . . . . . . Impact Corruptions . | . . . . . . . Robots Melted . | . . . . . . . Combat Hostiles . | . . . . . . . Parts Melted . | . . . . . . . Heat Transferred 175 | . . . . . . 175 Parts Sabotaged . | . . . . . . . Parts Stolen . | . . . . . . . Parts Stripped . | . . . . . . . Power Chain Reactions . | . . . . . . . Alert | -11 -10 -9 -9 -8 -8 -7 ------- Run | Yrd Mat Mat Min Mat Sto Fac Maximum Alert Level 1 | . . 1 1 . 1 . Low Security (%) 90 | 100 100 82 60 100 90 100 Level 1 9 | . . 17 39 . 9 . Level 2 . | . . . . . . . Level 3 . | . . . . . . . Level 4 . | . . . . . . . Level 5 . | . . . . . . . High Security . | . . . . . . . Max Security . | . . . . . . . Peak Influence 251 | . 97 226 251 102 224 80 Initial 77 | . . 20 64 45 9 77 Average 68 | . 34 75 189 50 69 24 Influence Increases 1533 | . 162 276 304 223 304 264 Destroy 0b10 Robot/C 740 | . 120 140 180 100 160 40 Destroy 0b10 Robot/NC 85 | . 5 25 25 20 10 . Destroy Leader 148 | . 22 26 30 30 40 . Successful Hack 38 | . 15 . . . 5 18 Disable Machine 54 | . . 27 18 . 9 . Destroy Structure 213 | . . 58 51 73 20 11 Lose Combat Pursuer 255 | . . . . . 60 195 Influence Decreases 1453 | . 105 137 362 333 133 383 Entered New Map 403 | . . 37 132 93 19 122 Time Decay 740 | . 105 90 170 150 74 151 Lost Part 310 | . . 10 60 90 40 110 Squads Dispatched 6 | . 1 . . 2 1 2 Investigation 3 | . 1 . . . 1 1 Extermination 1 | . . . . . . 1 Reinforcement . | . . . . . . . Assault . | . . . . . . . Garrison 2 | . . . . 2 . . Intercept . | . . . . . . . Searches Triggered . | . . . . . . . Construction Impeded . | . . . . . . . Haulers Reinforced . | . . . . . . . Active Scanning Responses . | . . . . . . . Cargo Convoy Interrupts . | . . . . . . . Stealth | -11 -10 -9 -9 -8 -8 -7 --------- Run | Yrd Mat Mat Min Mat Sto Fac Distress Signals 5 | . 1 . 2 1 1 . Communications Jammed . | . . . . . . . Distress Signals . | . . . . . . . Times Spotted 80 | . 10 17 10 9 14 20 Peak Tracking Total 9 | . 4 5 4 4 7 9 Tactical Retreats 10 | . 2 3 . . 2 3 ECM-based Alert Blocks 10 | . 2 8 . . . . Traps | -11 -10 -9 -9 -8 -8 -7 ------- Run | Yrd Mat Mat Min Mat Sto Fac Traps Triggered 2 | . . . . 1 1 . Indirectly . | . . . . . . . Trap Hack Attempts . | . . . . . . . Triggered . | . . . . . . . Disarmed . | . . . . . . . Reprogrammed . | . . . . . . . Reused . | . . . . . . . Traps Extracted . | . . . . . . . Installed . | . . . . . . . Triggered . | . . . . . . . Machines | -11 -10 -9 -9 -8 -8 -7 ---------- Run | Yrd Mat Mat Min Mat Sto Fac Machines Disabled 6 | . . 3 2 . 1 . Max in Single Turn 2 | . . 2 2 . 1 . Machines Repaired . | . . . . . . . Machines Dismantled . | . . . . . . . Machines Sabotaged . | . . . . . . . Overloaded Fab Kills . | . . . . . . . Hacking | -11 -10 -9 -9 -8 -8 -7 --------- Run | Yrd Mat Mat Min Mat Sto Fac Machines Accessed 11 | . 4 . . 3 1 3 Terminals 11 | . 4 . . 3 1 3 Fabricators . | . . . . . . . Repair Stations . | . . . . . . . Recycling Units . | . . . . . . . Scanalyzers . | . . . . . . . Garrison Access . | . . . . . . . Total Hacks 18 | . 8 . . 3 3 4 Successful 8 | . 3 . . 1 2 2 Failed 10 | . 5 . . 2 1 2 Catastrophic 2 | . 1 . . . . 1 Database Lockouts . | . . . . . . . Manual 10 | . 4 . . 3 1 2 Terminals 18 | . 8 . . 3 3 4 Fabricators . | . . . . . . . Repair Stations . | . . . . . . . Recycling Units . | . . . . . . . Scanalyzers . | . . . . . . . Garrison Access . | . . . . . . . Terminal Hacks 8 | . 3 . . 1 2 2 Record 3 | . 2 . . . 1 . Open DSF 1 | . . . . . . 1 Terminal Index 4 | . 1 . . 1 1 1 Fabricator Hacks . | . . . . . . . Repair Station Hacks . | . . . . . . . Recycling Unit Hacks . | . . . . . . . Scanalyzer . | . . . . . . . Garrison Access Hacks . | . . . . . . . Unauthorized Hacks . | . . . . . . . Terminals . | . . . . . . . Fabricators . | . . . . . . . Repair Stations . | . . . . . . . Recycling Units . | . . . . . . . Scanalyzers . | . . . . . . . Garrison Access . | . . . . . . . Data Cores Recovered . | . . . . . . . Used . | . . . . . . . Hacking Detections 6 | . 3 . . 1 1 1 Full Trace Events 3 | . 1 . . . 1 1 Feedback Events . | . . . . . . . Feedback Blocked . | . . . . . . . Robot Schematics Acquired . | . . . . . . . Robots Built . | . . . . . . . Authchips . | . . . . . . . Time . | . . . . . . . Total Robot Build Rating . | . . . . . . . Part Schematics Acquired . | . . . . . . . Parts Built . | . . . . . . . Authchips . | . . . . . . . Time . | . . . . . . . Total Part Build Rating . | . . . . . . . Part Studies Acquired . | . . . . . . . Parts Repaired . | . . . . . . . Time . | . . . . . . . Parts Recycled . | . . . . . . . Recycled Matter . | . . . . . . . Retrieved Matter . | . . . . . . . Retrieved Components . | . . . . . . . Parts Scanalyzed . | . . . . . . . Part Schematics Acquired . | . . . . . . . Parts Damaged . | . . . . . . . Bothacking | -11 -10 -9 -9 -8 -8 -7 ------------ Run | Yrd Mat Mat Min Mat Sto Fac Used RIF Installer . | . . . . . . . Robots Hacked . | . . . . . . . Non-combat . | . . . . . . . Combat . | . . . . . . . Robot Hacks Applied . | . . . . . . . Relay Couplers Released . | . . . . . . . Fabnet Peak Effective % . | . . . . . . . Robots Rewired . | . . . . . . . Allies Hacked . | . . . . . . . Hacks Repelled . | . . . . . . . Allies | -11 -10 -9 -9 -8 -8 -7 -------- Run | Yrd Mat Mat Min Mat Sto Fac Total Allies . | . . . . . . . Largest Group . | . . . . . . . Highest-Rated Group . | . . . . . . . Highest-Rated Ally . | . . . . . . . Total Orders . | . . . . . . . Ally Attacks . | . . . . . . . Total Damage . | . . . . . . . Kills . | . . . . . . . Allies Corrupted . | . . . . . . . Allies Melted . | . . . . . . . Intel | -11 -10 -9 -9 -8 -8 -7 ------- Run | Yrd Mat Mat Min Mat Sto Fac Active Infowar (turns) 657 | . 235 261 161 . . . ECM 657 | . 235 261 161 . . . Robot Analysis Total . | . . . . . . . Derelict Logs Recovered . | . . . . . . . Drone Launches . | . . . . . . . Drone Recoveries . | . . . . . . . Exploration | -11 -10 -9 -9 -8 -8 -7 ------------- Run | Yrd Mat Mat Min Mat Sto Fac Turns Passed 2064 | 56 361 261 345 308 246 487 Spaces Moved 1321 | 33 188 118 227 202 129 424 Core 162 | 16 . . 23 33 2 88 Treads 399 | 17 188 118 76 . . . Legs . | . . . . . . . Wheels 678 | . . . 128 159 55 336 Hover 82 | . . . . 10 72 . Flight . | . . . . . . . Fastest Speed 50 | 50 160 160 90 86 61 50 Average Speed 119 | 140 160 160 127 109 104 92 Slowest Speed 300 | 160 160 160 300 200 300 300 Overloaded Moves . | . . . . . . . Propulsion Burnouts . | . . . . . . . Robots Hopped . | . . . . . . . Potential Cave-ins . | . . . . . . . Cave-ins Triggered . | . . . . . . . Exploration Rate (%) 24 | 3 40 18 46 20 35 10 Regions Visited 6 Branch Regions 2 Pre-discovered Areas 1 | . . . 1 . . . Known Exits Taken . | . . . . . . . Unknown Exits Taken 6 | 1 1 1 1 1 1 . Scrap Searched . | . . . . . . . Spaces Dug . | . . . . . . . Terrain Destroyed 252 | . . 65 79 80 18 10 Melee . | . . . . . . . Projectile 1 | . . . . . 1 . AOE 251 | . . 65 79 80 17 10 Terrain Rammed . | . . . . . . . Walls Destroyed . | . . . . . . . Machines Disabled . | . . . . . . . Actions | -11 -10 -9 -9 -8 -8 -7 --------- Run | Yrd Mat Mat Min Mat Sto Fac Total 1637 | 40 214 163 255 260 202 503 Wait 128 | . 4 27 2 19 32 44 Move 1315 | 32 187 117 226 201 128 424 Hop . | . . . . . . . Pick Up 25 | 2 3 1 3 5 3 8 Fast Attach 24 | 6 1 1 5 5 6 . Attach 21 | . . 1 4 3 3 10 Detach 1 | . . . . . . 1 Swap 1 | . . . . 1 . . Drop 9 | . . 1 1 6 . 1 Fire 98 | . 19 15 14 20 17 13 Melee 1 | . . . . . . 1 Ram 1 | . . . . . . 1 Kick . | . . . . . . . Crush . | . . . . . . . Escape Stasis 13 | . . . . . 13 . Rewire . | . . . . . . . Trap . | . . . . . . . Miscellaneous . | . . . . . . . Route ------- -11/Scrapyard -10/Materials -9/Materials -9/Mines -8/Materials -8/Storage -7/Factory History --------- Turn | Location | Event 2 | -11/Scrapyard | Discovered new exit (range 16) 57 | -11/Scrapyard | Entered Materials 318 | -10/Materials | Build established: Mutant 394 | -10/Materials | Discovered new exit (range 16) 418 | -10/Materials | Entered another Materials area 418 | -9/Materials | Evolved 2 slots: Propulsion x1, Utility x1 655 | -9/Materials | Discovered new exit (range 16) 679 | -9/Materials | Entered Mines 785 | -9/Mines | Assembled infested the area 790 | -9/Mines | Assisted by a Guerilla fighting off Assembled 830 | -9/Mines | Core integrity fell below 50% 839 | -9/Mines | Core integrity fell below 20% 873 | -9/Mines | Lost 5 parts (1p2n1u1w) 954 | -9/Mines | Learned location of Storage (-8) 1016 | -9/Mines | Discovered new exit (range 9) 1024 | -9/Mines | Entered Materials 1024 | -8/Materials | Evolved 2 slots: Power x1, Propulsion x1 1219 | -8/Materials | Build established: Scavenger-Mutant 1226 | -8/Materials | Garrison activated, responded to threat 1298 | -8/Materials | Lost 7 parts (2p3n2w) 1302 | -8/Materials | Discovered new exit (range 15) 1332 | -8/Materials | Core integrity fell below 50% 1332 | -8/Materials | Entered Storage 1533 | -8/Storage | Lost 3 parts (3n) 1549 | -8/Storage | Destroyed 8 combat bots 1563 | -8/Storage | Discovered new exit (range 15) 1578 | -8/Storage | Entered Factory 1578 | -7/Factory | Evolved 2 slots: Propulsion x1, Utility x1 1936 | -7/Factory | Lost 4 parts (2n1u1w) 1982 | -7/Factory | Core integrity fell below 50% 2037 | -7/Factory | Core integrity fell below 20% 2048 | -7/Factory | Lost 11 parts (2p1n3u5w) 2065 | -7/Factory | Self-destructed Last Messages --------------- 01991_ P-60 Hacker resets G-47 Trooper, system corruption cleaned. 01993_ Hvy. Rocket Launcher destroyed. 01994_ EM Pulse Cannon severed. 01996_ L-41 Fighter knocked back. 01996_ G-47 Trooper destroyed. 01996_ P-60 Hacker resets L-41 Fighter, system corruption cleaned. 01998_ L-41 Fighter knocked back. 01999_ L-41 Fighter suffers critical hit (Burn). 02001_ L-41 Fighter knocked back. 02002_ P-60 Hacker resets L-41 Fighter, system corruption cleaned. 02003_ Acquired 3 matter. 02005_ EZY/UO%I5DU3|Q HHMFNOHTX%WGJFI:4R>EF4 02009_ Imp. Light Cannon destroyed. 02017_ Gatling Laser destroyed. 02019_ Mining Claw severed. 02020_ Acquired Mining Claw. 02052_ Acquired Med. Treads. Map ----- +----------------------------------------------------+ | | | | | | | | | | | | | | | | | | | | | | | | | | | | | | | | | | | | | | | | | | | | | | | | | ?????????###################?????? | | ?????????# p @ #?????? | | ?????????# """" #?????? | | ?????????# """" #?????? | | ?????????# """" #?????? | | ?????????# """Y""" """" #?????? | | ?????????# """"""" #?????? | | ?????????# ! #?????? | | ?????????#########/#########?????? | | ???????????????# +???????????? | | ???????????????# #???????????? | | ???????????????# #???????????? | | ???????????????+ +???????????? | | ???????????????# #???????????? | | ???????????????# #???????????? | | ???????????????# #???????????? | | ???????????????# #???????????? | | ???????????????# #???????????? | | ???????????????# #???????????? | | ???????????????# #???????????? | | ???????????????# #???????????? | | ???????????????# #???????????? | | ???????????????# #???????????? | | ???????????????# #???????????? | | ???????????????# #???????????? | | ???????????????# #???????????? | +----------------------------------------------------+ Best States ------------- Heat Dissipation 34 Energy Generation 16 Energy Capacity 400 Matter Stores 300 Matter Capacity 300 Sight Range 16 Terrain Scan Density 10 ECM Strength 1 Resistance: KI 20 Resistance: TH 20 Resistance: EX 20 Resistance: EM 20 Resistance: I 20 Resistance: S 20 Resistance: P 20 Evasion (%) 52 Targeting Accuracy 10 Recoil Reduction 2 Offensive Hacking 10 Item Schematics ----------------- None Robot Schematics ------------------ None Fabricated ------------ Nothing Repaired ---------- Nothing Studied --------- None Alien Tech Used ----------------- None Achievements -------------- None Challenges ------------ None Game ------ Seed AntimatterRemoteSlayer Manual? 0 Play Time 00:26:35 Cumulative 19.3 hours Start 2026.03.26 @ 14:14:18 End 2026.03.26 @ 14:41:48 Sessions 1 Manual Loads 0 Difficulty Adventurer Special Mode None Game No. 32 Rogue 0 Adventurer 32 Explorer 0 Win Type - Total 0 Types 0/0/0/0/0/0/0/0/0/0 Lore% 4 Gallery% 19 Achievement% 14 Wizard Run 0 Options --------- Layout 1 ASCII 0 Keyboard 0 Movement Mouse Keybinds 0 Fullscreen 1 Font 24/Smallcaps Map View 50x35 Zoom Use 0% Tactical HUD 1 Map Filters NONE Filters NONE Steam 1 RUN: e45ebe5a-b3d3-4e23-9c69-fac37c60a867